Cogmind - Beta 12 @@@ ROGUE MODE // 2023.07.09 @ 22:45:53 Player: Horse Result: Destroyed by H-66 Slayer with Gauss Rifle Performance ------------- Evolutions (5) 2500 Regions Visited (9) 1800 Robots Destroyed (142) 710 Value Destroyed (4205) 4205 Prototype IDs (13) 260 Alien Tech Used (0) 0 Bonus (1849) 1849 TOTAL SCORE: 11324 Bonus ------- High Alert Combat Kills 649 Entered Garrisons 200 Used RIF Installer 500 Entered DSFs 500 Cogmind --------- Core Integrity 0/1000 Matter 172/300 Energy 10/100 System Corruption 13% Temperature Cool (2) Movement Walking (90) Location -5/Factory Parts ------- > --- POWER (2) -------- (None) > --- PROPULSION (4) --- Improved VSS Leg > --- UTILITY (7) ------ Improved Reaction Control System > --- WEAPON (4) ------- Power Sword Spear > --- INVENTORY (5) ---- Large Storage Unit Improved Thermal Shield Relay Coupler [Swarmer] (44) Long-range Tractor Beam Peak State ------------ > --- POWER ------------ Light Ion Engine > --- PROPULSION ------- Field Propulsion Drive Field Propulsion Drive Nuclear Pulse Array > --- UTILITY ---------- Scrap Engine Advanced Targeting Computer Advanced Targeting Computer System Shield Relay Coupler [NC] Relay Coupler [Grunt] > --- WEAPON ----------- Remote Datajack Spear > --- INVENTORY -------- Energy Well Improved Reaction Control System Improved Thermal Shield Relay Coupler [Swarmer] Relay Coupler [Swarmer] [Rating: 64] Favorites ----------- Power Heavy Ion Engine Engine Heavy Ion Engine Power Core Light Nuclear Core Propulsion Advanced Treads Treads Advanced Treads Leg Aluminum Leg Wheel Compact Wheel Flight Unit Field Propulsion Drive Utility Advanced Targeting Computer Device Cooling System Storage Medium Storage Unit Processor Advanced Targeting Computer Hackware Relay Coupler [NC] Protection Heavy Armor Plating Weapon Improved EM Shotgun Energy Gun Improved EM Shotgun Energy Cannon Advanced Beam Cannon Ballistic Gun Heavy Assault Rifle Launcher Rocket Launcher Special Weapon Remote Datajack Slashing Weapon Power Sword Piercing Weapon Spear Build | -11 -10 -9 -8 -8 -8 -8 -6 -6 -5 ------- Run | Jun Mat Mat Mat Sto Gar Rec Fac DSF Fac Slots Evolved 10 | . . 2 2 . . . 4 . 2 Power 1 | . . . . . . . 1 . . Propulsion 2 | . . . . . . . 2 . . Utility 5 | . . 2 2 . . . . . 1 Weapon 2 | . . . . . . . 1 . 1 Parts Attached 172 | 8 24 32 39 . 19 5 4 16 25 Power 17 | 1 3 2 2 . 1 1 1 3 3 Engine 14 | 1 3 2 2 . . 1 . 2 3 Core 3 | . . . . . 1 . 1 1 . Reactor . | . . . . . . . . . . Propulsion 46 | 2 8 6 10 . 5 2 1 5 7 Treads 14 | . . 3 5 . 3 . . 3 . Leg 7 | . 2 1 . . . . . . 4 Wheel 22 | 2 6 2 5 . 2 2 1 2 . Hover . | . . . . . . . . . . Flight 3 | . . . . . . . . . 3 Utility 53 | 2 5 8 15 . 7 1 1 4 10 Device 27 | 1 2 1 9 . 6 . 1 3 4 Storage 6 | 1 1 1 . . 1 1 . 1 . Processor 8 | . 1 2 4 . . . . . 1 Hackware 4 | . . . . . . . . . 4 Protection 8 | . 1 4 2 . . . . . 1 Artifact . | . . . . . . . . . . Weapon 56 | 3 8 16 12 . 6 1 1 4 5 Energy Gun 17 | 2 7 3 . . 3 . 1 1 . Energy Cannon 5 | . . 5 . . . . . . . Ballistic Gun 15 | . . 2 9 . 1 1 . 2 . Ballistic Cannon . | . . . . . . . . . . Launcher 13 | . 1 6 3 . 2 . . 1 . Special Weapon 3 | 1 . . . . . . . . 2 Impact Weapon . | . . . . . . . . . . Slashing Weapon 1 | . . . . . . . . . 1 Piercing Weapon 2 | . . . . . . . . . 2 Special Melee Weapon . | . . . . . . . . . . Unidentified Prototypes 4 | . 1 2 1 . . . . . . Corrupted Parts 8 | 1 . 2 . . 2 1 . 2 . System Corruption 27 | 1 . 6 . . 17 1 . 2 . Parts Lost 49 | . 4 2 1 . 8 2 . 17 15 Power 7 | . 1 . . . 1 1 . 3 1 Propulsion 13 | . 1 . . . 1 1 . 4 6 Utility 15 | . 1 . 1 . 2 . . 4 7 Weapon 14 | . 1 2 . . 4 . . 6 1 Highest Loss Streak 12 | . 4 1 1 . 3 2 . 9 12 To Critical Strikes . | . . . . . . . . . . Average Slot Usage (%) 83 | . 92 89 89 90 88 81 86 54 46 Engine 7 | . 12 11 8 9 2 4 8 3 . Core 1 | . . . . . 6 . 3 3 . Treads 7 | . . 11 9 9 8 . . 3 . Leg 2 | . 5 5 . . . . . . 2 Wheel 7 | . 21 4 8 9 8 14 20 8 . Device 8 | . 4 2 8 9 20 18 13 4 5 Storage 8 | . 14 11 9 9 9 9 6 6 . Processor 13 | . 3 10 17 18 18 18 13 13 8 Hackware 1 | . . . . . . . . . 10 Protection 6 | . 3 10 9 9 2 . . . . Energy Gun 6 | . 26 8 . . 7 9 13 6 . Energy Cannon 1 | . . 4 . . . . . . . Ballistic Gun 7 | . . 7 16 18 4 6 6 4 . Launcher 1 | . . 1 1 . 2 . . . . Naked Turns . | . . . . . . . . . . Heaviest Build 162 | 13 22 40 45 42 154 155 162 162 21 Greatest Support 75 | 32 32 40 44 12 75 26 42 42 45 Greatest Overweight (x) 14 | . 3 3 4 3 12 12 3 14 1 Average Overweight (x) 1 | . . 1 2 3 2 5 3 3 . Largest Inventory Capacity 30 | 8 10 10 10 10 30 30 30 30 5 Average Capacity 11 | 7 9 10 10 10 11 29 30 26 5 Most Carried 19 | 6 10 10 10 10 14 19 18 19 5 Average Carried 9 | 3 7 9 9 10 9 16 17 13 4 Final Capacity 30 | 8 10 10 10 10 30 30 30 5 5 Final Carried 19 | 4 7 10 10 10 14 19 18 5 4 Scrap Engine Consumption 9 | . . . . . . . . . 9 Constructs Created 2 | . . . . . . . . . 2 Class Distribution -------------------- 75% | Mutant 12% | Bothacker-Mutant 5% | Scavenger-Mutant 4% | Hauler-Mutant Dominant Class ---------------- Mutant | -10/Materials Mutant | -9/Materials Mutant | -8/Materials Mutant | -8/Storage Mutant | -8/Garrison Scavenger-Mutant | -8/Recycling Scavenger-Gunner | -6/Factory Hauler-Mutant | -6/DSF Bothacker-Mutant | -5/Factory Resources | -11 -10 -9 -8 -8 -8 -8 -6 -6 -5 ----------- Run | Jun Mat Mat Mat Sto Gar Rec Fac DSF Fac Matter Collected 3400 | 280 189 708 1357 . 445 72 . 75 274 Remotely 776 | . . . 544 . 232 . . . . Salvage Created 5197 | 89 395 1314 1999 . 725 225 . 118 332 Parts 283 | 4 27 86 106 . 23 10 . 10 17 Haulers Intercepted 8 | . 1 1 4 . 1 . . . 1 Recyclers Shooed 7 | 1 . . 4 . . 2 . . . Parts Field Recycled . | . . . . . . . . . . Retrieved Matter . | . . . . . . . . . . Parts Self-Destructed . | . . . . . . . . . . Prevented . | . . . . . . . . . . Kills | -11 -10 -9 -8 -8 -8 -8 -6 -6 -5 ------- Run | Jun Mat Mat Mat Sto Gar Rec Fac DSF Fac Combat Hostiles Destroyed 98 | . 11 35 28 . 16 . . 3 5 Melee 2 | . . . . . . . . . 2 Guns 49 | . 4 15 20 . 8 . . 2 . Cannons 7 | . . 5 . . . . . . 2 AOE 39 | . 7 14 8 . 8 . . 1 1 Classes Destroyed 16 | 2 5 5 2 . 1 . . 1 . Worker 10 | . . 2 4 . . . . . 4 Builder 5 | . 1 1 2 . . 1 . . . Tunneler 1 | 1 . . . . . . . . . Hauler 8 | . 1 1 4 . 1 . . . 1 Recycler 11 | 1 . . 7 . . 3 . . . Mechanic 1 | . . 1 . . . . . . . Watcher 8 | . 2 3 3 . . . . . . Swarmer 26 | . 6 13 3 . . . . 1 3 Grunt 51 | . 5 14 16 . 15 . . . 1 Brawler 2 | . . 1 1 . . . . . . Duelist 2 | . . . 2 . . . . . . Protector 2 | . . 1 1 . . . . . . Sentry 11 | . . 6 4 . . . . . 1 Specialist 2 | . . . . . . . . 2 . Hunter 1 | . . . 1 . . . . . . Programmer 1 | . . . . . 1 . . . . Best Kill Streak 14 | 1 9 8 14 . 5 2 . 1 3 Combat Bots Only 8 | . 8 7 5 . 5 . . 1 3 Max Kills in Single Turn 4 | 1 4 3 2 . 2 1 . 1 3 Gunslinging . | . . . . . . . . . . Exploded 4 | . 4 2 2 . 2 . . 1 1 Melee 1 | . . . . . . . . . 1 Uniques/NPCs Destroyed . | . . . . . . . . . . Combat | -11 -10 -9 -8 -8 -8 -8 -6 -6 -5 -------- Run | Jun Mat Mat Mat Sto Gar Rec Fac DSF Fac Damage Taken 8231 | 2 480 1125 1108 . 1341 24 . 1740 2411 Core 2126 | . 184 120 84 . 211 . . 521 1006 Absorbed by Shields 269 | . . . . . 221 6 . 42 . Regen/Repaired (Parts) 283 | . . . 254 . . . 29 . . Core Remaining (%) 56 | 100 26 70 . . . 46 . 38 . Volleys Fired 329 | 7 17 82 109 . 62 7 . 22 23 Largest 3 | 2 2 2 2 . 2 2 . 3 1 Hottest 134 | 80 90 91 64 . 134 73 . 129 90 Shots Fired 554 | 14 31 145 210 . 83 13 . 35 23 Gun 472 | 14 29 110 200 . 72 13 . 34 . Cannon 23 | . . 19 . . . . . . 4 Launcher 40 | . 2 16 10 . 11 . . 1 . Special 19 | . . . . . . . . . 19 Kinetic 312 | . . 49 200 . 37 5 . 17 4 Thermal 59 | . . 19 . . 27 . . 13 . Explosive 40 | . 2 16 10 . 11 . . 1 . Electromagnetic 124 | 14 29 61 . . 8 8 . 4 . Robot Hit Streak 28 | 5 7 12 14 . 28 6 . 15 12 Robot Miss Streak 5 | 1 3 5 3 . 2 1 . 1 2 Penetration Max 1 | . . . 1 . . . . . . Secondary Targets 11 | . . 2 6 . 2 . . 1 . Max Gunslinging Chain 1 | . . 1 1 . 1 . . 1 . Shots Hit Robots 408 | 10 24 89 156 . 62 9 . 32 26 Core Hits 222 | 3 18 62 83 . 37 5 . 6 8 Critical Kills 2 | . . 1 1 . . . . . . Critical Parts Destroyed 3 | . . . 1 . 1 . . 1 . Critical Strikes 9 | . . 1 2 . 1 . . 2 3 Burn 1 | . . . . . . . . 1 . Meltdown 1 | . . 1 . . . . . . . Destroy 4 | . . . 2 . 1 . . 1 . Sever 1 | . . . . . . . . . 1 Impale 2 | . . . . . . . . . 2 Melee Attacks 26 | . . . . . . . . . 26 Impact . | . . . . . . . . . . Slashing 5 | . . . . . . . . . 5 Piercing 21 | . . . . . . . . . 21 Sneak Attacks 3 | . . . . . . . . . 3 Combat Hostiles . | . . . . . . . . . . Follow-up Attacks 1 | . . . . . . . . . 1 Damage Inflicted 11745 | 138 914 2815 3794 . 2223 183 . 634 1044 Guns 6164 | 134 352 1177 2794 . 1034 161 . 512 . Cannons 371 | . . 227 . . . . . . 144 Explosions 4779 | . 562 1411 1000 . 1179 22 . 116 489 Melee 384 | . . . . . . . . . 384 Ramming 47 | 4 . . . . 10 . . 6 27 Kinetic 4201 | . . 362 2794 . 592 49 . 260 144 Thermal 1859 | . 128 661 . . 352 22 . 207 489 Explosive 3706 | . 434 977 1000 . 1179 . . 116 . Electromagnetic 1548 | 134 352 815 . . 90 112 . 45 . Impact . | . . . . . . . . . . Slashing 114 | . . . . . . . . . 114 Piercing 270 | . . . . . . . . . 270 Highest Corruption 21 | 1 3 8 . . 20 21 . 2 13 Average Corruption 7 | 1 3 6 . . 6 20 . 1 4 Corruption Purged . | . . . . . . . . . . Corruption Blocked . | . . . . . . . . . . Effects 88 | . 6 46 . . 10 18 . . 8 Message Errors 21 | . . 11 . . 3 6 . . 1 Matter Fused 14 | . 2 8 . . 1 3 . . . Heat Flow Errors 13 | . 2 6 . . 2 2 . . 1 Energy Discharges 5 | . . 4 . . 1 . . . . Parts Rejected 1 | . . . . . . . . . 1 Parts Fused 1 | . . 1 . . . . . . . Data Loss (minor) 18 | . 1 10 . . 2 4 . . 1 Data Loss (major) 6 | . . 4 . . . 1 . . 1 Misfires 3 | . . . . . 1 2 . . . Alerts 3 | . 1 1 . . . . . . 1 Misdirections 2 | . . . . . . . . . 2 Weapon Failures 1 | . . 1 . . . . . . . Overload Shots . | . . . . . . . . . . Overflow Damage 456 | . 73 68 52 . 55 19 . 5 184 Projectiles . | . . . . . . . . . . Explosions 361 | . 73 68 52 . 55 19 . 5 89 Melee 95 | . . . . . . . . . 95 Knockbacks . | . . . . . . . . . . Impact . | . . . . . . . . . . Kinetic . | . . . . . . . . . . Secondary . | . . . . . . . . . . Self-Inflicted Damage 451 | 2 106 206 19 . 37 30 . 39 12 Shots 18 | . 4 8 1 . 3 1 . 1 . Rammed 15 | 1 . . . . 5 . . 2 7 Targets Rammed 16 | 1 . . . . 5 . . 2 8 Kicked 1 | . . . . . . . . . 1 Crushed . | . . . . . . . . . . Highest Temperature 332 | 92 247 332 81 . 210 137 . . 175 Average Temperature 79 | 35 66 95 36 . 55 66 . . 61 Received Heat Transfer 2049 | . 36 249 549 . 589 . . 248 378 Effects 4 | . . 4 . . . . . . . Interference 3 | . . 3 . . . . . . . Damage (minor) 1 | . . 1 . . . . . . . Siege Activations . | . . . . . . . . . . Robots Corrupted 1 | . . . . . 1 . . . . Combat Hostiles . | . . . . . . . . . . Parts Fried 12 | 2 . 3 . . 5 . . 2 . Impact Corruptions . | . . . . . . . . . . Robots Melted 1 | . . 1 . . . . . . . Combat Hostiles 1 | . . 1 . . . . . . . Parts Melted 3 | . . 2 . . 1 . . . . Heat Transferred 2818 | . 250 947 . . 666 50 . 555 350 Parts Sabotaged . | . . . . . . . . . . Parts Stolen . | . . . . . . . . . . Parts Stripped . | . . . . . . . . . . Power Chain Reactions 9 | . 3 5 . . . 1 . . . Missiles Intercepted . | . . . . . . . . . . Alert | -11 -10 -9 -8 -8 -8 -8 -6 -6 -5 ------- Run | Jun Mat Mat Mat Sto Gar Rec Fac DSF Fac Peak Influence 874 | 10 387 725 874 373 663 293 122 88 493 Initial 369 | . 6 78 279 369 242 289 122 88 10 Average 387 | 3 163 469 452 371 540 288 122 52 237 Maximum Alert Level 3 | . 1 3 3 1 2 1 . . 2 Low Security (%) 18 | 100 76 3 . . . . 100 100 44 Level 1 32 | . 23 17 50 100 19 100 . . 35 Level 2 42 | . . 67 33 . 80 . . . 20 Level 3 7 | . . 11 16 . . . . . . Level 4 . | . . . . . . . . . . Level 5 . | . . . . . . . . . . High Security . | . . . . . . . . . . Max Security . | . . . . . . . . . . Squads Dispatched 15 | . 1 4 5 . . . . 1 4 Investigation 8 | . . 3 2 . . . . . 3 Extermination . | . . . . . . . . . . Reinforcement 5 | . 1 . 2 . . . . 1 1 Assault 2 | . . 1 1 . . . . . . Garrison . | . . . . . . . . . . Intercept . | . . . . . . . . . . Searches Triggered 1 | . . . . . . . . . 1 Construction Impeded . | . . . . . . . . . . Haulers Reinforced 1 | . . . . . . . . . 1 Active Scanning Responses . | . . . . . . . . . . Cargo Convoy Interrupts . | . . . . . . . . . . Stealth | -11 -10 -9 -8 -8 -8 -8 -6 -6 -5 --------- Run | Jun Mat Mat Mat Sto Gar Rec Fac DSF Fac Distress Signals 8 | . 1 1 1 . . . . . 5 Communications Jammed . | . . . . . . . . . . Distress Signals . | . . . . . . . . . . Times Spotted 193 | . 15 46 38 . 22 . . 7 65 Peak Tracking Total 19 | . 9 5 6 . 4 . . 4 19 Tactical Retreats 18 | . . . . . 1 . . 1 16 Traps | -11 -10 -9 -8 -8 -8 -8 -6 -6 -5 ------- Run | Jun Mat Mat Mat Sto Gar Rec Fac DSF Fac Traps Triggered 11 | . 4 1 3 . 1 . . 1 1 Indirectly . | . . . . . . . . . . Trap Hack Attempts . | . . . . . . . . . . Triggered . | . . . . . . . . . . Disarmed . | . . . . . . . . . . Reprogrammed . | . . . . . . . . . . Reused . | . . . . . . . . . . Traps Extracted . | . . . . . . . . . . Installed . | . . . . . . . . . . Triggered . | . . . . . . . . . . Machines | -11 -10 -9 -8 -8 -8 -8 -6 -6 -5 ---------- Run | Jun Mat Mat Mat Sto Gar Rec Fac DSF Fac Machines Disabled 21 | . 3 10 4 . 1 . . . 3 Max in Single Turn 3 | . 1 2 1 . 1 . . . 3 Garrison Relay 1 | . . . . . 1 . . . . Machines Repaired . | . . . . . . . . . . Machines Sabotaged . | . . . . . . . . . . Overloaded Fab Kills 4 | . . . . . . . . . 4 Hacking | -11 -10 -9 -8 -8 -8 -8 -6 -6 -5 --------- Run | Jun Mat Mat Mat Sto Gar Rec Fac DSF Fac Machines Accessed 46 | . 7 15 10 2 1 . 2 . 9 Terminals 32 | . 7 11 6 1 1 . 1 . 5 Fabricators 2 | . . . . . . . . . 2 Repair Stations 3 | . . 1 2 . . . . . . Recycling Units 5 | . . 2 1 . . . . . 2 Scanalyzers 3 | . . 1 1 . . . 1 . . Garrison Access 1 | . . . . 1 . . . . . Total Hacks 151 | . 18 56 39 8 4 . 3 . 23 Successful 77 | . 6 33 22 3 1 . 3 . 9 Failed 74 | . 12 23 17 5 3 . . . 14 Catastrophic 16 | . 1 4 5 2 1 . . . 3 Database Lockouts . | . . . . . . . . . . Manual 80 | . 17 28 17 7 3 . . . 8 Terminals 92 | . 18 33 16 4 4 . 1 . 16 Fabricators 4 | . . . . . . . . . 4 Repair Stations 9 | . . 2 7 . . . . . . Recycling Units 15 | . . 9 3 . . . . . 3 Scanalyzers 27 | . . 12 13 . . . 2 . . Garrison Access 4 | . . . . 4 . . . . . Terminal Hacks 20 | . 2 9 3 . 1 . 1 . 4 Robot Analysis 2 | . . 2 . . . . . . . Prototype ID Bank 5 | . 1 4 . . . . . . . Open DSF 2 | . . . . . . . 1 . 1 Branch Access Points 2 | . . . 1 . . . . . 1 Emergency Access Points 1 | . . . . . 1 . . . . Terminal Index 4 | . 1 1 1 . . . . . 1 Unreport Threat 1 | . . 1 . . . . . . . Locate Traps 2 | . . 1 1 . . . . . . Registered Components 1 | . . . . . . . . . 1 Fabricator Hacks . | . . . . . . . . . . Repair Station Hacks 6 | . . . 6 . . . . . . Scan Component 3 | . . . 3 . . . . . . Repair 3 | . . . 3 . . . . . . Recycling Unit Hacks 4 | . . 3 . . . . . . 1 Process 1 | . . 1 . . . . . . . Retrieve Components 3 | . . 2 . . . . . . 1 Scanalyzer 23 | . . 10 11 . . . 2 . . Insert Component 9 | . . 4 4 . . . 1 . . Analyze 14 | . . 6 7 . . . 1 . . Garrison Access Hacks 1 | . . . . 1 . . . . . Unlock Access 1 | . . . . 1 . . . . . Unauthorized Hacks 23 | . 4 11 2 2 . . . . 4 Terminals 17 | . 4 6 2 2 . . . . 3 Track 1 | . . . . 1 . . . . . Assimilate 3 | . 1 2 . . . . . . . Botnet 10 | . 3 3 1 1 . . . . 2 Detonate 1 | . . . . . . . . . 1 Operators 2 | . . 1 1 . . . . . . Fabricators 1 | . . . . . . . . . 1 Overload 1 | . . . . . . . . . 1 Repair Stations . | . . . . . . . . . . Recycling Units 4 | . . 4 . . . . . . . Monitor 1 | . . 1 . . . . . . . Reject 1 | . . 1 . . . . . . . Recyclers 1 | . . 1 . . . . . . . Mask 1 | . . 1 . . . . . . . Scanalyzers 1 | . . 1 . . . . . . . Extract 1 | . . 1 . . . . . . . Garrison Access . | . . . . . . . . . . Data Cores Recovered . | . . . . . . . . . . Used . | . . . . . . . . . . Hacking Detections 43 | . 7 15 10 2 1 . 1 . 7 Full Trace Events 8 | . 2 3 1 . . . . . 2 Feedback Events 1 | . . . . . . . . . 1 Corruption 1 | . . . . . . . . . 1 Feedback Blocked . | . . . . . . . . . . Robot Schematics Acquired . | . . . . . . . . . . Robots Built . | . . . . . . . . . . Authchips . | . . . . . . . . . . Time . | . . . . . . . . . . Total Robot Build Rating . | . . . . . . . . . . Part Schematics Acquired 13 | . . 9 3 . . . 1 . . Parts Built . | . . . . . . . . . . Authchips . | . . . . . . . . . . Time . | . . . . . . . . . . Total Part Build Rating . | . . . . . . . . . . Parts Repaired 3 | . . . 3 . . . . . . Time 121 | . . . 121 . . . . . . Parts Recycled . | . . . . . . . . . . Recycled Matter . | . . . . . . . . . . Retrieved Matter . | . . . . . . . . . . Retrieved Components 20 | . . 19 . . . . . . 1 Parts Scanalyzed 9 | . . 4 4 . . . 1 . . Part Schematics Acquired 8 | . . 4 3 . . . 1 . . Parts Damaged . | . . . . . . . . . . Bothacking | -11 -10 -9 -8 -8 -8 -8 -6 -6 -5 ------------ Run | Jun Mat Mat Mat Sto Gar Rec Fac DSF Fac Used RIF Installer 1 | . . . . . 1 . . . . Robots Hacked 10 | . . . . . . . . . 10 Non-combat 2 | . . . . . . . . . 2 Combat 8 | . . . . . . . . . 8 Robot Hacks Applied 14 | . . . . . . . . . 14 drop_inventory 2 | . . . . . . . . . 2 find_garrison 1 | . . . . . . . . . 1 scatter_targeting 2 | . . . . . . . . . 2 disrupt_area 2 | . . . . . . . . . 2 overwrite_iff 7 | . . . . . . . . . 7 Relay Couplers Released 8 | . . . . . 8 . . . . Machine Destruction 4 | . . . . . 4 . . . . Programmers 4 | . . . . . 4 . . . . Attached 3 | . . . . . . . . . 3 Fabnet Peak Effective % . | . . . . . . . . . . Robots Rewired . | . . . . . . . . . . Allies Hacked . | . . . . . . . . . . Hacks Repelled . | . . . . . . . . . . Allies | -11 -10 -9 -8 -8 -8 -8 -6 -6 -5 -------- Run | Jun Mat Mat Mat Sto Gar Rec Fac DSF Fac Total Allies 8 | . . 1 . . . . . . 7 Largest Group 2 | . . 1 . . . . . . 2 Highest-Rated Group 47 | . . 10 . . . . . . 47 Highest-Rated Ally 47 | . . 10 . . . . . . 47 Total Orders . | . . . . . . . . . . Ally Attacks 22 | . . . . . . . . . 22 Total Damage 216 | . . . . . . . . . 216 Kills . | . . . . . . . . . . Allies Corrupted . | . . . . . . . . . . Allies Melted . | . . . . . . . . . . Intel | -11 -10 -9 -8 -8 -8 -8 -6 -6 -5 ------- Run | Jun Mat Mat Mat Sto Gar Rec Fac DSF Fac Robot Analysis Total 2 | . . 2 . . . . . . . Derelict Logs Recovered . | . . . . . . . . . . Drone Launches . | . . . . . . . . . . Drone Recoveries . | . . . . . . . . . . Exploration | -11 -10 -9 -8 -8 -8 -8 -6 -6 -5 ------------- Run | Jun Mat Mat Mat Sto Gar Rec Fac DSF Fac Turns Passed 6006 | 99 416 2020 1327 48 726 371 149 161 689 Spaces Moved 3684 | 59 316 1031 560 36 304 183 104 42 1049 Core 191 | 3 1 . . . . 1 . 14 172 Treads 560 | . . 407 114 . 39 . . . . Legs 353 | . 65 231 . . . . . . 57 Wheels 1760 | 56 250 393 446 36 265 182 104 28 . Hover . | . . . . . . . . . . Flight 820 | . . . . . . . . . 820 Fastest Speed 39 | 50 80 110 125 135 105 100 138 50 39 Average Speed 117 | 97 98 156 151 135 145 179 138 135 45 Slowest Speed 320 | 100 200 240 225 135 320 270 138 290 120 Overloaded Moves . | . . . . . . . . . . Propulsion Burnouts . | . . . . . . . . . . Robots Hopped 8 | . . . . . . . . . 8 Cave-ins Triggered . | . . . . . . . . . . Exploration Rate (%) 36 | 4 61 75 60 8 35 44 5 43 27 Regions Visited 9 Branch Regions 2 Pre-discovered Areas . | . . . . . . . . . . Known Exits Taken 4 | . . 1 1 1 . . 1 . . Unknown Exits Taken 3 | 1 1 . . . . 1 . . . Scrap Searched . | . . . . . . . . . . Spaces Dug 36 | . 5 18 . . . . . . 13 Terrain Destroyed 348 | . 17 165 76 . 13 3 . 8 66 Melee 13 | . . . . . . . . . 13 Projectile . | . . . . . . . . . . AOE 335 | . 17 165 76 . 13 3 . 8 53 Terrain Rammed . | . . . . . . . . . . Walls Destroyed . | . . . . . . . . . . Machines Disabled . | . . . . . . . . . . Actions | -11 -10 -9 -8 -8 -8 -8 -6 -6 -5 --------- Run | Jun Mat Mat Mat Sto Gar Rec Fac DSF Fac Total 4792 | 84 385 1290 873 35 513 214 108 102 1188 Wait 431 | 1 13 105 136 . 104 3 . 15 54 Move 3662 | 59 315 1030 559 35 303 182 104 41 1034 Hop 7 | . . . . . . . . . 7 Pick Up 78 | 8 9 15 14 . 9 16 . 1 6 Fast Attach 62 | 4 11 11 6 . 6 4 . 5 15 Attach 47 | 3 7 4 6 . 6 1 2 11 7 Detach 16 | . 3 3 1 . 5 . . 1 3 Swap 63 | 1 6 17 27 . 7 . 2 . 3 Drop 57 | 1 4 23 15 . 6 1 . 4 3 Fire 329 | 7 17 82 109 . 62 7 . 22 23 Melee 25 | . . . . . . . . . 25 Ram 8 | . . . . . 1 . . . 7 Kick 1 | . . . . . . . . . 1 Crush 6 | . . . . . 4 . . 2 . Escape Stasis . | . . . . . . . . . . Rewire . | . . . . . . . . . . Trap . | . . . . . . . . . . Miscellaneous . | . . . . . . . . . . Route ------- -11/Junkyard -10/Materials (discovered 3 exits: *Mat x2 / [*Min]) -9/Materials (discovered 4 exits: *Mat x3 / [*Min]) -8/Materials (discovered 5 exits: *Fac x3 / *Sto x2) -8/Storage -8/Garrison -8/Recycling -6/Factory -6/DSF -5/Factory (discovered 2 exits: Upp x2) History --------- Turn | Location | Event 5 | -11/Junkyard | Discovered new exit (range 16) 100 | -11/Junkyard | Entered Materials 227 | -10/Materials | Discovered new exit (range 17) 313 | -10/Materials | Build established: Mutant 364 | -10/Materials | Discovered new exit (range 10) 436 | -10/Materials | Core integrity fell below 50% 448 | -10/Materials | Destroyed 8 combat bots 458 | -10/Materials | Lost 4 parts (1p1n1u1w) 479 | -10/Materials | Discovered new exit (range 15) 516 | -10/Materials | Entered another Materials area 516 | -9/Materials | Evolved 2 slots: Utility x2 615 | -9/Materials | Destroyed 7 combat bots 1840 | -9/Materials | Discovered new exit (range 11) 1854 | -9/Materials | Identified exit to Materials 1904 | -9/Materials | Discovered new exit (range 9) 2062 | -9/Materials | Discovered exit to Materials (range 8) 2116 | -9/Materials | First assault squad dispatched 2480 | -9/Materials | Discovered exit to Materials (range 13) 2536 | -9/Materials | Entered another Materials area 2536 | -8/Materials | Evolved 2 slots: Utility x2 3034 | -8/Materials | Repaired Hvy. Armor Plating 3067 | -8/Materials | Repaired Rocket Launcher 3119 | -8/Materials | Repaired Hvy. Ion Engine 3290 | -8/Materials | Discovered new exit (range 15) 3361 | -8/Materials | Identified exit to Factory 3460 | -8/Materials | Discovered new exit (range 16) 3526 | -8/Materials | Discovered exit to Factory (range 16) 3614 | -8/Materials | Identified exit to Storage 3736 | -8/Materials | First assault squad dispatched 3802 | -8/Materials | Discovered exit to Factory (range 12) 3863 | -8/Materials | Entered Storage 3880 | -8/Storage | Identified exit to Garrison 3911 | -8/Storage | Entered Garrison 4004 | -8/Garrison | Triggered checkpoint 4030 | -8/Garrison | Triggered checkpoint 4132 | -8/Garrison | Lost 3 parts (1p1u1w) 4158 | -8/Garrison | Triggered checkpoint 4210 | -8/Garrison | Installed Relay Interface Framework 4233 | -8/Garrison | Garrison Relay disabled 4340 | -8/Garrison | Core integrity fell below 50% 4377 | -8/Garrison | Lost 3 parts (1n2w) 4570 | -8/Garrison | System corruption reached 10% 4618 | -8/Garrison | Discovered new exit (range 8) 4637 | -8/Garrison | Entered Recycling 4638 | -8/Recycling | Joined Warlord attack on 0b10 via Recycling 4643 | -8/Recycling | Found Scrap Engine 4975 | -8/Recycling | Discovered new exit (range 15) 5008 | -8/Recycling | Entered Factory 5008 | -6/Factory | Evolved 4 slots: Power x1, Propulsion x2, Weapon x1 5157 | -6/Factory | Identified exit to DSF 5157 | -6/Factory | Entered DSF 5184 | -6/DSF | Additional patrols routed to DSF 5262 | -6/DSF | Lost 8 parts (1p1n3u3w) 5301 | -6/DSF | Discovered new exit (range 16) 5304 | -6/DSF | Core integrity fell below 50% 5318 | -6/DSF | Entered Factory 5318 | -5/Factory | Evolved 2 slots: Utility x1, Weapon x1 5334 | -5/Factory | Lost 9 parts (2p3n1u3w) 5422 | -5/Factory | Identified exit to Upper Caves 5588 | -5/Factory | Spotted B-75 Beast 5597 | -5/Factory | Build established: Bothacker-Mutant 5858 | -5/Factory | System corruption reached 10% 5859 | -5/Factory | Core integrity fell below 50% 5905 | -5/Factory | Core integrity fell below 20% 5918 | -5/Factory | Search patrols dispatched 5923 | -5/Factory | Lost 12 parts (1p4n6u1w) 6007 | -5/Factory | Destroyed by H-66 Slayer with Gauss Rifle Last Messages --------------- 05987_ Acquired 34 matter. 05987_ Penetrated by Slug. 05988_ System corrupted: Imp. VSS Leg stumbles. 05989_ Slug penetrates Wall. 05990_ K-01 Serf collects debris. 05992_ Penetrated by Slug. 05993_ Slug penetrates Wall. 05993_ Imp. VSS Leg destroyed. 05993_ Slug penetrates Wall. 05993_ K-01 Serf collects debris. 05995_ Slug penetrates Wall. 05995_ Penetrated by Slug. 05996_ Imp. VSS Leg destroyed. 05996_ K-01 Serf collects debris. 05997_ The unstable cave ceiling collapses. 05999_ Slug penetrates Wall. 06005_ S-27 Virus destroyed. 06007_ Slug penetrates Wall. 06007_ Slug penetrates Door. 06007_ Penetrated by Slug. Map ----- +----------------------------------------------------+ | # ! #???????? | | """ """ ###+#########???????? | | """ """ #????????????? | | """ """ #????????????? | | #????????????? | | #????????????? | | #????????????? | | ###+##+###??????????? | | # #??????????? | | # """ #??????????? | | # """ #??????????? | | # """ #??????????? | | # #??????????? | | # """ #??????????? | | # """ #??????????? | | # """ #??????????? | | ? # #??????????? | | ? ########+#??????????? | | ?? ######## #????######? | | ?? = #????# # | | ?? %*# # #????# """# | | ?????## = #????# """# | | ?????# % #????# """# | | ?????# ! ###### ""# | | ?????# = # h hg# ""# | | ?????# =% [ %;@ # | | ?????# !% = ## # !# | | ?????# [ ## # # | | ?????# T # # # | | ?????# "" # # # | | ?????# * ### # =# | | ?????##########?# ####### | | ????????????????#########?????? | | ??????????????????????????????? | | ??????????????????????????????? | | ??????????????????????????????? | | ??????????????????????????????? | | ??????????????????????????????? | | ??????????????????????????????? | | ??????????????????????????????? | | ??????????????????????????????? | | ??????????????????????????????? | | ??????????????????????????????? | | ??????????????????????????????? | | ??????????????????????????????? | | ??????????????????????????????? | | ??????????????????????????????? | | ??????????????????????????????? | | ??????????????????????????????? | | ??????????????????????????????? | +----------------------------------------------------+ Best States ------------- Heat Dissipation 59 Energy Generation 30 Energy Capacity 280 Matter Stores 300 Matter Capacity 300 Sight Range 18 Terrain Scan Range 16 Terrain Scan Density 10 Jamming Range 12 Power Amplification 20 Additional Mass Support 9 Armor Coverage 600 Resistance: TH 25 Evasion (%) 62 Targeting Accuracy 16 Recoil Reduction 2 Defensive Hacking 10 Relay Coupler Types 2 Relay Coupler Value 46 Item Schematics ----------------- Disposable Heat Sink | -9/Materials | Scanalyzed Plasma Cutter | -9/Materials | Scanalyzed Transport Network Coupler | -9/Materials | Scanalyzed Wheel | -9/Materials | Scanalyzed Lrg. Storage Unit | -9/Materials | Extracted Hcp. Matter Pod | -9/Materials | Extracted Hover Unit | -9/Materials | Extracted Beam Rifle | -9/Materials | Extracted Arm. Wheel | -9/Materials | Extracted Hvy. Armor Plating | -8/Materials | Scanalyzed Coolant Injector | -8/Materials | Scanalyzed Transmission Jammer | -8/Materials | Scanalyzed Remote Shield | -6/Factory | Scanalyzed Robot Schematics ------------------ None Fabricated ------------ Nothing Alien Tech Used ----------------- None Achievements -------------- None Challenges ------------ None Game ------ Seed KineticCargoSegregator Manual? 0 Play Time 01:25:41 Cumulative 1037.0 hours Start 2023.07.09 @ 21:24:27 End 2023.07.09 @ 22:45:53 Sessions 1 Manual Loads 0 Difficulty Rogue Special Mode None Game No. 427 Rogue 427 Adventurer 0 Explorer 0 Win Type - Total 13 Types 12/0/1/0/0/0/0/0/0 Lore% 72 Gallery% 83 Achievement% 70 Wizard Run 0 Options --------- ASCII 0 Keyboard 1 Movement Numpad Keybinds 0 Fullscreen 1 Font 18/SmallcapsGlow Map View 112x50 Tactical HUD 1 Map Filters NONE Filters NONE Steam 1 RUN: 1b99ac95-4534-42e1-bb61-34c7c9154876